fUST/lending_fUST_20240427
["ID","MTS","AMOUNT","RATE_DAILY","PERIOD"]
[323724400,1714204238799,-155.99850525,0.00019998,2]
[323724402,1714204238809,-1625.42246961,0.00019998,2]
[323724404,1714204238820,-155.08589962,0.00019998,2]
[323724407,1714204238831,-646.57238522,0.00019998,2]
[323724409,1714204238840,-151.0,0.00019998,2]
[323724411,1714204238850,-408.72824153,0.00019999,2]
[323724413,1714204238859,-648.10267264,0.00019999,2]
[323724415,1714204238868,-329.804469,0.0002,2]
[323724417,1714204238877,-80000.0,0.0002,2]
[323724419,1714204238887,-278.1654711,0.0002,2]
[323724421,1714204238897,-67387.81511513,0.0002,2]
[323724423,1714204238906,-154.82968734,0.0002,2]
[323724425,1714204238916,-400.0,0.0002,2]
[323724427,1714204238925,-154.82968734,0.0002,2]
[323724429,1714204238935,-320.78044824,0.0002,2]
[323724431,1714204238945,-154.82968734,0.0002,2]
[323724433,1714204238954,-241.61171692,0.0002,2]
[323724435,1714204238963,-151.0,0.0002,2]
[323724437,1714204238974,-296.742278,0.0002,2]
[323724439,1714204238982,-151.0,0.0002,2]
[323724441,1714204238991,-151.0,0.0002,2]
[323724443,1714204239001,-151.0,0.0002,2]
[323724445,1714204239011,-151.0,0.0002,2]
[323724447,1714204239021,-151.0,0.0002,2]
[323724449,1714204239030,-151.0,0.0002,2]
[323724451,1714204239040,-151.0,0.0002,2]
[323724453,1714204239050,-151.0,0.0002,2]
[323724455,1714204239059,-151.0,0.0002,2]
[323724457,1714204239068,-243.96344034,0.0002,2]
[323724459,1714204239078,-151.0,0.0002,2]
[323724461,1714204239087,-270.702937,0.0002,2]
[323724464,1714204239097,-200.0,0.0002,2]
[323724466,1714204239107,-151.0,0.0002,2]
[323724468,1714204239116,-151.0,0.0002,2]
[323724470,1714204239126,-151.0,0.0002,2]
[323724472,1714204239135,-263.454325,0.0002,2]
[323724485,1714204239246,-263.454325,0.0002,2]
[323724488,1714204239262,-151.0,0.0002,2]
[323724490,1714204239271,-151.0,0.0002,2]
[323724492,1714204239281,-151.0,0.0002,2]
[323724494,1714204239290,-151.0,0.0002,2]
[323724496,1714204239299,-164.737122,0.0002,2]
[323724498,1714204239308,-286.721688,0.0002,2]
[323724500,1714204239317,-286.721688,0.0002,2]
[323724502,1714204239326,-250.51909,0.0002,2]
[323724504,1714204239335,-250.51909,0.0002,2]
[323724506,1714204239344,-151.0,0.0002,2]
[323724508,1714204239353,-151.0,0.0002,2]
[323724510,1714204239362,-151.0,0.0002,2]
[323724512,1714204239372,-350.653558,0.0002,2]
[323724514,1714204239380,-350.653558,0.0002,2]
[323724516,1714204239389,-350.653558,0.0002,2]
[323724518,1714204239398,-350.653558,0.0002,2]
[323724520,1714204239407,-246.92501,0.0002,2]
[323724522,1714204239416,-1274.949487,0.00020548,2]
[323724524,1714204239425,-921.3,0.00021357,3]
[323724526,1714204239434,-1152.0,0.00021563,2]
[323724528,1714204239443,-680.8,0.0002171,3]
[323724530,1714204239452,-10000.0,0.00021918,2]
[323724532,1714204239461,-583.73,0.00021918,2]
[323724534,1714204239470,-262.992297,0.00021918,2]
[323724536,1714204239479,-262.992297,0.00021918,2]
[323724538,1714204239488,-262.992297,0.00021918,2]
[323724540,1714204239497,-262.992297,0.00021918,2]
[323724542,1714204239506,-262.992297,0.00021918,2]
[323724544,1714204239515,-262.992297,0.00021918,2]
[323724546,1714204239525,-262.992297,0.00021918,2]
[323724547,1714204239534,-262.992297,0.00021918,2]
[323724549,1714204239543,-663.34,0.00021918,2]
[323724551,1714204239552,-552.79,0.00021918,2]
[323724553,1714204239561,-230.33,0.00021918,2]
[323724555,1714204239570,-191.94,0.00021918,2]
[323724557,1714204239579,-159.95,0.00021918,2]
[323724559,1714204239588,-799.78,0.00021918,2]
[323724561,1714204239597,-262.992297,0.00021918,2]
[323724563,1714204239607,-262.992297,0.00021918,2]
[323724566,1714204239616,-151.0,0.00021918,2]
[323724568,1714204239626,-350.653558,0.00021918,2]
[323724570,1714204239635,-350.653558,0.00021918,2]
[323724571,1714204239644,-305.99543219,0.00022,2]
[323724573,1714204239654,-417.0,0.00022512,2]
[323724576,1714204239663,-150.0,0.00022512,2]
[323724577,1714204239672,-210.696,0.00022512,2]
[323724580,1714204239681,-153.0,0.0002274,2]
[323724582,1714204239691,-153.0,0.0002274,2]
[323724584,1714204239700,-153.0,0.0002274,2]
[323724585,1714204239709,-153.0,0.0002274,2]
[323724587,1714204239719,-153.0,0.0002274,2]
[323724590,1714204239728,-153.0,0.0002274,2]
[323724592,1714204239737,-153.0,0.0002274,2]
[323724594,1714204239746,-153.0,0.0002274,2]
[323724596,1714204239755,-153.0,0.0002274,2]
[323724598,1714204239764,-713.83575721,0.00023,2]
[323724600,1714204239774,-680.8,0.0002364,3]
[323724601,1714204239783,-203.6873974,0.00023684,2]
[323724603,1714204239792,-203.6873974,0.00023684,2]
[323724605,1714204239801,-203.6873974,0.00023684,2]
[323724607,1714204239812,-203.6873974,0.00023684,2]
[323724609,1714204239821,-203.6873974,0.00023684,2]
[323724611,1714204239831,-203.6873974,0.00023684,2]
[323724613,1714204239840,-203.6873974,0.00023684,2]
[323724615,1714204239850,-203.6873974,0.00023684,2]
[323724617,1714204239859,-203.6873974,0.00023684,2]
[323724619,1714204239868,-203.6873974,0.00023684,2]
[323724621,1714204239877,-203.6873974,0.00023684,2]
[323724624,1714204239887,-203.6873974,0.00023684,2]
[323724626,1714204239897,-203.6873974,0.00023684,2]
[323724627,1714204239906,-203.6873974,0.00023684,2]
[323724630,1714204239916,-203.6873974,0.00023684,2]
[323724632,1714204239925,-203.6873974,0.00023684,2]
[323724634,1714204239934,-203.6873974,0.00023684,2]
[323724636,1714204239943,-203.6873974,0.00023684,2]
[323724638,1714204239953,-203.6873974,0.00023684,2]
[323724640,1714204239962,-203.6873974,0.00023684,2]
[323724642,1714204239971,-203.6873974,0.00023684,2]
[323724644,1714204239980,-203.6873974,0.00023684,2]
[323724646,1714204239989,-203.6873974,0.00023684,2]
[323724648,1714204239998,-203.6873974,0.00023684,2]
[323724650,1714204240007,-167.443342,0.00023684,2]
[323724652,1714204240016,-263.454325,0.00023684,2]
[323724654,1714204240025,-263.454325,0.00023684,2]
[323724656,1714204240034,-151.0,0.00023684,2]
[323724658,1714204240043,-151.0,0.00023684,2]
[323724660,1714204240052,-151.0,0.00023684,2]
[323724662,1714204240061,-151.0,0.00023684,2]
[323724664,1714204240071,-286.721688,0.00023684,2]
[323724666,1714204240080,-286.721688,0.00023684,2]
[323724668,1714204240088,-250.51909,0.00023684,2]
[323724670,1714204240098,-250.51909,0.00023684,2]
[323724672,1714204240107,-151.0,0.00023684,2]
[323724673,1714204240116,-153.0,0.00023699,2]
[323724676,1714204240125,-1613.0,0.0002372,2]
[323724677,1714204240135,-151.0,0.0002376,2]
[323724680,1714204240144,-350.653558,0.0002376,2]
[323724682,1714204240153,-350.653558,0.0002376,2]
[323724684,1714204240163,-306.0,0.00023836,2]
[323724686,1714204240172,-151.0,0.0002384,2]
[323724688,1714204240181,-5000.0,0.000245,2]
[323724690,1714204240190,-151.0,0.000245,2]
[323724692,1714204240200,-151.0,0.000245,2]
[323724694,1714204240209,-151.0,0.000245,2]
[323724696,1714204240218,-150.0,0.000245,2]
[323724698,1714204240228,-155.61648785,0.00024643,2]
[323724699,1714204240237,-500.0,0.00024657,2]
[323724701,1714204240246,-262.992297,0.00024657,2]
[323724703,1714204240256,-262.992297,0.00024657,2]
[323724705,1714204240266,-5191.25,0.00024657,2]
[323724707,1714204240275,-601.89285867,0.00024657,2]
[323724709,1714204240284,-380.0,0.00024658,2]
[323724711,1714204240293,-500.0,0.0002488,5]
[323724713,1714204240302,-155.37331854,0.00025,2]
[323724715,1714204240311,-150.0,0.0002516,10]
[323724717,1714204240321,-153.0,0.00025205,2]
[323724719,1714204240329,-153.0,0.00025205,2]
[323724721,1714204240339,-153.0,0.00025205,2]
[323724723,1714204240348,-153.0,0.00025205,2]
[323724725,1714204240357,-153.0,0.00025205,2]
[323724727,1714204240366,-269.3637892,0.00025205,2]
[323724729,1714204240375,-153.0,0.00025233,2]
[323724731,1714204240383,-417.0,0.00025512,2]
[323724733,1714204240393,-150.0,0.00025512,2]
[323724735,1714204240402,-680.8,0.0002557,3]
[323724737,1714204240411,-5191.25,0.00025753,4]
[323724739,1714204240421,-151.0,0.00025753,2]
[323724741,1714204240431,-350.653558,0.00025753,2]
[323724743,1714204240440,-350.653558,0.00025753,2]
[323724745,1714204240449,-90056.12456328,0.000259,2]
[323724747,1714204240458,-151.0,0.000259,2]
[323724749,1714204240468,-151.0,0.000259,2]
[323724751,1714204240477,-151.0,0.000259,2]
[323724753,1714204240486,-151.0,0.000259,2]
[323724755,1714204240495,-263.454325,0.000259,2]
[323724757,1714204240505,-263.454325,0.000259,2]
[323724759,1714204240514,-151.0,0.000259,2]
[323724761,1714204240523,-270.555248,0.000259,2]
[323724763,1714204240532,-151.0,0.000259,2]
[323724765,1714204240541,-151.0,0.000259,2]
[323724767,1714204240550,-286.721688,0.000259,2]
[323724769,1714204240559,-286.721688,0.000259,2]
[323724771,1714204240568,-250.51909,0.000259,2]
[323724773,1714204240577,-250.51909,0.000259,2]
[323724775,1714204240586,-151.0,0.000259,2]
[323724777,1714204240595,-262.992297,0.000259,2]
[323724779,1714204240604,-262.992297,0.000259,2]
[323724781,1714204240613,-151.0,0.000259,2]
[323724783,1714204240622,-350.653558,0.000259,2]
[323724785,1714204240631,-350.653558,0.000259,2]
[323724787,1714204240640,-207.92306846,0.00025986,2]
[323724789,1714204240649,-154.86062544,0.00025986,2]
[323724791,1714204240659,-1676.6573344,0.00025996,2]
[323724793,1714204240668,-154.95400209,0.00025996,2]
[323724795,1714204240677,-138362.09250165,0.00026,2]
[323724797,1714204240686,-1563.48070757,0.00026,2]
[323724799,1714204240695,-4244.27607174,0.00026,10]
[323724801,1714204240704,-222.52810778,0.00026,2]
[323724803,1714204240713,-5600.0,0.00026,9]
[323724805,1714204240722,-10590.66904835,0.00026,2]
[323724807,1714204240731,-308.0622801,0.00026,2]
[323724809,1714204240741,-381.0,0.00026,2]
[323724811,1714204240751,-693.03286136,0.00026,2]
[323724813,1714204240761,-262.992297,0.00026,2]
[323724815,1714204240770,-262.992297,0.00026,2]
[323724817,1714204240779,-151.0,0.00026,2]
[323724819,1714204240788,-350.653558,0.00026,2]
[323724821,1714204240797,-350.653558,0.00026,2]
[323724823,1714204240806,-153.0,0.00026027,2]
[323724826,1714204240819,-153.0,0.00026027,2]
[323724828,1714204240828,-153.0,0.00026027,2]
[323724829,1714204240838,-153.0,0.00026027,2]
[323724832,1714204240847,-153.0,0.00026027,2]
[323724833,1714204240857,-153.0,0.00026027,2]
[323724835,1714204240867,-153.0,0.00026027,2]
[323724837,1714204240876,-153.0,0.00026027,2]
[323724840,1714204240886,-378.4343209,0.00026027,2]
[323724842,1714204240896,-153.0,0.00026027,2]
[323724844,1714204240907,-153.0,0.00026027,2]
[323724846,1714204240916,-153.0,0.00026027,2]
[323724848,1714204240925,-153.0,0.00026027,2]
[323724850,1714204240934,-153.0,0.00026027,2]
[323724852,1714204240943,-2258.0,0.00026092,2]
[323724854,1714204240952,-151.0,0.00026164,2]
[323724856,1714204240962,-151.0,0.00026164,2]
[323724858,1714204240971,-286.721688,0.00026164,2]
[323724860,1714204240980,-286.721688,0.00026164,2]
[323724862,1714204240989,-250.51909,0.00026164,2]
[323724873,1714204241089,-250.51909,0.00026164,2]
[323724875,1714204241099,-263.454325,0.0002618,2]
[323724877,1714204241108,-263.454325,0.0002618,2]
[323724879,1714204241118,-151.0,0.0002618,2]
[323724881,1714204241127,-151.0,0.00026224,2]
[323724883,1714204241136,-151.0,0.00026224,2]
[323724885,1714204241145,-2310.922321,0.000265,2]
[323724887,1714204241156,-151.0,0.000265,2]
[323724889,1714204241165,-151.0,0.000265,2]
[323724891,1714204241174,-151.0,0.000265,2]
[323724893,1714204241184,-150.0,0.0002671,13]
[323724895,1714204241192,-5191.25,0.00026849,6]
[323724897,1714204241201,-151.0,0.00026849,2]
[323724899,1714204241210,-350.653558,0.00026849,2]
[323724901,1714204241220,-350.653552,0.00026849,2]
[323724903,1714204241229,-153.0,0.00026849,2]
[323724905,1714204241238,-153.0,0.00026849,2]
[323724907,1714204241247,-153.0,0.00026849,2]
[323724909,1714204241256,-153.0,0.00026849,2]
[323724911,1714204241266,-153.0,0.00026849,2]
[323724913,1714204241275,-153.0,0.00026849,2]
[323724915,1714204241284,-7609.74114434,0.0002699,2]
[323724917,1714204241293,-262.992297,0.0002699,2]
[323724919,1714204241301,-262.992297,0.0002699,2]
[323724921,1714204241310,-287.50953231,0.00026999,2]
[323724923,1714204241320,-2982.08114055,0.00027,2]
[323725103,1714204243156,-5542.2538642,0.00027,2]
[323725105,1714204243165,-4611.69086392,0.00027,2]
[323725574,1714205144115,-206.17044886,0.00010536,2]
[323725575,1714205144136,-9.62867441,0.00010973,2]
[323725577,1714205345093,-1240.95632527,0.00010753,2]
[323725578,1714205346100,-177.27234281,0.00010753,2]
[323725579,1714205346120,-196.54177445,0.00010973,2]
[323725580,1714205346141,-521.1072121,0.00010973,2]
[323725581,1714205346162,-79.09992536,0.00010974,2]
[323725582,1714205347291,-75.72976198,0.00010974,2]
[323725583,1714205360185,521.1072121,0.00010973,2]
[323725584,1714205378436,219.19833328,0.00010973,2]
[323725602,1714205432385,-30.78489274,0.00010973,2]
[323725603,1714205432394,-154.82968734,0.00010973,2]
[323725604,1714205432403,-730.38126429,0.000138,2]
[323725605,1714205432412,-754.1474236,0.00014456,2]
[323725606,1714205432421,-939.04672329,0.00015,2]
[323725607,1714205432430,-2100.50593903,0.00015,2]
[323725608,1714205432439,-312.79447259,0.00015907,2]
[323725609,1714205432448,-300.0,0.00015908,2]
[323725610,1714205432457,-300.0,0.00015908,2]
[323725611,1714205432466,-24900.0,0.00015909,2]
[323725612,1714205432476,-169.250561,0.0001625,2]
[323725613,1714205432485,-420.0,0.00017395,2]
[323725614,1714205432494,-420.0,0.00017499,2]
[323725615,1714205432503,-154.38889814,0.000189,7]
[323725616,1714205432513,-189.30063706,0.0001897,2]
[323725617,1714205432524,-154.93802479,0.00019,2]
[323725618,1714205432533,-7930.56704238,0.00019,2]
[323725619,1714205432542,-297.0,0.0001902,2]
[323725620,1714205432551,-159.720715,0.00019178,2]
[323725621,1714205432561,-587.0,0.00019249,2]
[323725622,1714205432570,-732.99109423,0.000198,2]
[323725623,1714205432579,-96580.02235235,0.00019897,2]
[323725655,1714205438146,-500.0,0.00019178,2]
[323725656,1714205438156,-384.40664766,0.00019178,2]
[323725657,1714205438166,-500.0,0.00019178,2]
[323725658,1714205438177,-405.5939686,0.00019178,2]
[323725659,1714205438189,-71.04800066,0.00019178,2]
[323725660,1714205438198,-863.95199934,0.00019897,2]
[323725661,1714205438294,-21741.44216867,0.00019897,2]
[323725666,1714205438437,-1045.28687344,0.00019897,2]
[323726163,1714205443050,-2480.74540206,0.00019897,2]
[323726190,1714205443297,-0.01242587,0.00019897,2]
[323726911,1714205611987,10000.0,0.000266,120]
[323726912,1714205684371,-1000.0,0.00032307,120]
[323726913,1714205684395,-1000.0,0.00032307,120]
[323726914,1714205684419,-503.099999,0.00032307,120]
[323726915,1714205684442,-1000.0,0.00032307,90]
[323726916,1714205684466,-509.699999,0.00032307,90]
[323726917,1714205684489,-177.75,0.00032307,30]
[323726918,1714205684512,-255.34690637,0.00032307,30]
[323726919,1714205684535,-1147.3274419,0.00032307,120]
[323726920,1714205684558,-3959.61381429,0.00032307,30]
[323726921,1714205689788,-1954.0,0.00027367,35]
[323726922,1714205689815,-150.5,0.00027367,35]
[323726923,1714205689842,-1954.0,0.00027377,35]
[323726924,1714205689867,-150.5,0.00027377,35]
[323726925,1714205689893,-1954.0,0.00027387,35]
[323726926,1714205689919,-150.5,0.00027387,35]
[323726927,1714205690067,-500.0,0.00027397,30]
[323726928,1714205690134,-150.5,0.00027641,35]
[323726929,1714205690159,-233.04,0.00027641,35]
[323726930,1714205690183,-150.5,0.00027641,35]
[323726931,1714205690207,-150.5,0.00027651,35]
[323726932,1714205690233,-150.5,0.00027651,35]
[323726933,1714205690260,-150.5,0.00027651,35]
[323726934,1714205690284,-150.5,0.00027661,35]
[323726935,1714205690307,-150.5,0.00027661,35]
[323726936,1714205690337,-150.5,0.00027661,35]
[323726937,1714205690364,-500.0,0.00027671,30]
[323726938,1714205690420,-500.0,0.00027945,30]
[323726939,1714205690468,-500.0,0.00028219,30]
[323726940,1714205690512,-500.0,0.00028493,30]
[323726941,1714205690552,-221.094,0.00028667,30]
[323726942,1714205690575,-1954.0,0.0002867,35]
[323726943,1714205690597,-1954.0,0.0002868,35]
[323726944,1714205690620,-1954.0,0.0002869,35]
[323726945,1714205690643,-150.5,0.00028737,35]
[323726946,1714205690665,-150.5,0.00028747,35]
[323726947,1714205690688,-150.5,0.00028757,35]
[323726948,1714205690711,-500.0,0.00028767,30]
[323726949,1714205690752,-157.78,0.0002901,35]
[323726950,1714205690774,-150.5,0.0002902,35]
[323726951,1714205690798,-166.23,0.0002903,35]
[323726952,1714205690822,-150.5,0.0002903,35]
[323726953,1714205690846,-500.0,0.00029041,30]
[323726954,1714205690885,-500.0,0.00029315,30]
[323726955,1714205690922,-196.82,0.0002958,35]
[323726956,1714205690946,-1954.0,0.0002958,35]
[323726957,1714205690969,-500.0,0.00029589,30]
[323726958,1714205691007,-150.5,0.0002959,35]
[323726959,1714205691031,-1954.0,0.0002959,35]
[323726960,1714205691054,-500.0,0.00029863,30]
[323726961,1714205691090,-244.32785364,0.0003,30]
[323726962,1714205691112,-810.31,0.0003,107]
[323726963,1714205691135,-993.0,0.0003,120]
[323726964,1714205691158,-500.0,0.00030136,30]
[323726965,1714205691194,-500.0,0.0003041,30]
[323726966,1714205691375,-500.0,0.00030684,30]
[323726967,1714205691411,-500.0,0.00030958,30]
[323726968,1714205691446,-200.0,0.00031173,120]
[323726969,1714205691470,-500.0,0.00031232,30]
[323726970,1714205691503,-500.0,0.00031506,30]
[323726971,1714205691536,-167.964317,0.00031507,34]
[323726972,1714205691560,-167.964317,0.00031507,44]
[323726973,1714205691583,-167.964317,0.00031507,55]
[323726974,1714205691606,-167.964317,0.00031507,66]
[323726975,1714205691628,-167.964317,0.00031507,77]
[323726976,1714205691651,-167.964317,0.00031507,87]
[323726977,1714205691675,-167.964317,0.00031507,98]
[323726978,1714205691698,-167.964317,0.00031507,109]
[323726979,1714205691721,-167.964317,0.00031507,119]
[323726980,1714205691744,-500.0,0.0003178,30]
[323726981,1714205691777,-500.0,0.00032054,30]
[323726982,1714205691809,-1959.0,0.0003228,35]
[323726983,1714205691832,-1954.0,0.0003229,35]
[323726984,1714205691858,-500.0,0.00032328,30]
[323726985,1714205691889,-287.15950031,0.00032602,30]
[323726986,1714205691923,-200.0,0.00032876,30]
[323726987,1714205691945,-200.0,0.00032876,30]
[323726988,1714205691968,-200.0,0.00032876,30]
[323726989,1714205691992,-200.0,0.00032876,30]
[323726990,1714205692014,-200.0,0.00032876,30]
[323726991,1714205692037,-200.0,0.00032876,30]
[323726992,1714205692062,-200.0,0.00032876,30]
[323726993,1714205692084,-200.0,0.00032876,30]
[323726994,1714205692106,-200.0,0.00032876,30]
[323726995,1714205692129,-200.0,0.00032876,30]
[323726996,1714205692151,-200.0,0.00032876,30]
[323726997,1714205692174,-200.0,0.00032876,30]
[323726998,1714205692196,-200.0,0.00032876,30]
[323726999,1714205692219,-200.0,0.00032876,30]
[323727000,1714205692246,-200.0,0.00032876,30]
[323727001,1714205692270,-200.0,0.00032876,30]
[323727002,1714205692294,-200.0,0.00032876,30]
[323727003,1714205692318,-200.0,0.00032876,30]
[323727004,1714205692342,-200.0,0.00032876,30]
[323727005,1714205692365,-200.0,0.00032876,30]
[323727006,1714205692389,-306.36093493,0.00032876,30]
[323727007,1714205692447,-4327.47301814,0.00034,60]
[323727008,1714205692472,-564.41061078,0.00035,30]
[323727009,1714205692496,-1841.70172047,0.00035,30]
[323727010,1714205692520,-4542.34,0.00035616,30]
[323727011,1714205692544,-2592.482939,0.00035616,120]
[323727012,1714205692567,-1000.0,0.00036,120]
[323727013,1714205692592,-200.0,0.00036326,120]
[323727014,1714205692734,-500.0,0.00036616,30]
[323727015,1714205692758,-231.20906612,0.00036616,30]
[323727016,1714205692781,-4542.34,0.00036712,32]
[323727017,1714205692804,-3000.0,0.000375,32]
[323727018,1714205692827,-3000.0,0.0003751,32]
[323727019,1714205692850,-3000.0,0.0003752,32]
[323727020,1714205692873,-3000.0,0.0003753,32]
[323727021,1714205692896,-3000.0,0.0003754,32]
[323727022,1714205692918,-3000.0,0.0003755,32]
[323727023,1714205692941,-3000.0,0.0003756,32]
[323727024,1714205692965,-3000.0,0.0003757,32]
[323727025,1714205692990,-3000.0,0.0003758,32]
[323727026,1714205693012,-3000.0,0.0003759,32]
[323727027,1714205693035,-3000.0,0.000376,32]
[323727028,1714205693057,-3000.0,0.0003761,32]
[323727029,1714205693081,-3000.0,0.0003762,32]
[323727030,1714205693104,-3000.0,0.0003763,32]
[323727031,1714205693128,-3000.0,0.0003764,32]
[323727032,1714205693153,-3000.0,0.0003765,32]
[323727033,1714205693177,-3000.0,0.0003766,32]
[323727034,1714205693200,-3000.0,0.0003767,32]
[323727035,1714205693223,-3000.0,0.0003768,32]
[323727036,1714205693250,-3000.0,0.0003769,32]
[323727037,1714205693275,-3000.0,0.000377,32]
[323727038,1714205693299,-3000.0,0.0003771,32]
[323727039,1714205693322,-3000.0,0.0003772,32]
[323727040,1714205693346,-3000.0,0.0003773,32]
[323727041,1714205693371,-3000.0,0.0003774,32]
[323727042,1714205693394,-3000.0,0.0003775,32]
[323727043,1714205693418,-3000.0,0.0003776,33]
[323727044,1714205693441,-3000.0,0.0003777,33]
[323727045,1714205693464,-3000.0,0.0003778,33]
[323727046,1714205693489,-3000.0,0.0003779,33]
[323727047,1714205693512,-3000.0,0.000378,33]
[323727048,1714205693534,-4542.34,0.00037808,34]
[323727049,1714205693557,-3000.0,0.0003781,33]
[323727050,1714205693580,-3000.0,0.0003782,33]
[323727051,1714205693604,-3000.0,0.0003783,33]
[323727052,1714205693626,-3000.0,0.0003784,33]
[323727053,1714205693649,-3000.0,0.0003785,33]
[323727054,1714205693672,-3000.0,0.0003786,33]
[323727055,1714205693694,-3000.0,0.0003787,33]
[323727056,1714205693716,-3000.0,0.0003788,33]
[323727057,1714205693741,-3000.0,0.0003789,33]
[323727058,1714205693764,-3000.0,0.000379,33]
[323727059,1714205693787,-3000.0,0.0003791,33]
[323727060,1714205693810,-3000.0,0.0003792,33]
[323727061,1714205693832,-5695.786426,0.0003793,33]
[323727062,1714205693854,-1500.0,0.00038,120]
[323727063,1714205693877,-200.0,0.00038065,120]
[323727064,1714205693901,-20000.0,0.0003838,60]
[323727065,1714205693925,-4542.34,0.00038904,36]
[323727066,1714205693948,-160.0,0.00039105,30]
[323727067,1714205693972,-1177.43894667,0.00039298,40]
[323727068,1714205693995,-160.0,0.00039299,31]
[323727069,1714205694019,-681.36634286,0.00039397,30]
[323727070,1714205694041,-160.0,0.00039493,32]
[323727071,1714205694064,-160.0,0.00039688,33]
[323727072,1714205694088,-70747.46978808,0.000398,120]
[323727073,1714205699738,-10000.0,0.000335,60]
[323727074,1714205699775,-290000.0,0.000398,120]
[323727082,1714206453118,-154.82968734,0.00010842,2]
[323727083,1714206453140,-156.13972088,0.00010843,2]
[323727084,1714206453161,-472.36268614,0.0001094,2]
[323727085,1714206453183,-154.82968734,0.00010941,2]
[323727086,1714206453204,-521.0,0.00010973,2]
[323727087,1714206453226,-155.091384,0.00010973,2]
[323727088,1714206453248,-730.38126429,0.000138,2]
[323727089,1714206453269,-169.715228,0.00014821,2]
[323727090,1714206453291,-312.79447259,0.00015399,2]
[323727091,1714206453311,-191.13258208,0.00015401,2]
[323727116,1714206632287,-154.82968734,0.00014999,2]
[323727117,1714206632297,-939.04672329,0.00015,2]
[323727118,1714206632306,-300.0,0.00015789,2]
[323727119,1714206632316,-300.0,0.00015789,2]
[323727120,1714206632325,-1590.58475812,0.0001579,2]
[323727420,1714206643450,-772.20533333,0.0001579,2]
[323727702,1714206646266,-1280.89945,0.0001579,2]
[323727703,1714206646306,-11930.53284879,0.0001579,2]
[323727815,1714207065335,2000.0,0.000266,120]
[323727862,1714207832446,-730.38126429,0.00013821,2]
[323727864,1714207832456,-3049.6859726,0.00013822,2]
[323727866,1714207832465,-947.2343629,0.00013824,2]
[323727868,1714207832474,-300.0,0.00014399,2]
[323727869,1714207832483,-495.44471449,0.00014399,2]
[323727871,1714207832493,-24900.0,0.000144,2]
[323727873,1714207832502,-300.0,0.00014728,2]
[323727875,1714207832513,-156.13972087,0.0001489,2]
[323727877,1714207832523,-939.04672329,0.00015116,2]
[323727879,1714207832532,-312.79447259,0.00015117,2]
[323727881,1714207832541,-169.715228,0.00015118,2]
[323727883,1714207832550,-2096.51743258,0.00015196,2]
[323727884,1714207832560,-13595.67393789,0.000154,2]
[323727886,1714207832570,-154.92253873,0.00015401,2]
[323727888,1714207832580,-521.0,0.00015401,2]
[323727890,1714207832589,-420.0,0.00015769,2]
[323727892,1714207832598,-420.0,0.00016201,2]
[323727894,1714207832607,-201.0,0.00017269,2]
[323727896,1714207832616,-272.70165246,0.0001765,2]
[323727897,1714207832626,-587.0,0.00017821,2]
[323727899,1714207832635,-153.82371977,0.00018978,2]
[323727901,1714207832645,-7930.56704238,0.00019,2]